Cogmind - Beta 15 @@@ ROGUE MODE // 2025.08.30 @ 10:58:56 Player: shapeshifter Result: Self-destructed Performance ------------- Evolutions (2) 1000 Regions Visited (3) 600 Robots Destroyed (15) 75 Value Destroyed (352) 352 Prototype IDs (2) 40 Alien Tech Used (0) 0 Bonus (0) 0 TOTAL SCORE: 2067 Bonus ------- None Cogmind --------- Core Integrity 52/550 Matter 56/300 Energy 85/100 System Corruption 0% Temperature Cool (0) Movement Walking (260) Ox2 Location -8/Materials Parts ------- > --- POWER (1) -------- (None) > --- PROPULSION (3) --- Aluminum Leg Aluminum Leg > --- UTILITY (3) ------ Large Storage Unit Medium Reactive Plating Medium Reactive Plating > --- WEAPON (4) ------- (None) > --- INVENTORY (15) --- Improved Cooling System Advanced Visual Processing Unit Medium Reactive Plating Medium Reactive Plating Improved Medium Laser Field Laser Light Assault Rifle Grenade Launcher Peak State ------------ > --- POWER ------------ (None) > --- PROPULSION ------- Improved VTOL Module > --- UTILITY ---------- Large Storage Unit > --- WEAPON ----------- Gauss Cannon Gauss Cannon Gauss Cannon Gauss Cannon > --- INVENTORY -------- Improved Cooling System Advanced Visual Processing Unit Medium Reactive Plating Medium Reactive Plating Medium Reactive Plating Medium Reactive Plating Improved Medium Laser Field Laser Light Assault Rifle Grenade Launcher [Rating: 24] Favorites ----------- Power Light Ion Engine Engine Light Ion Engine Propulsion Light Treads Treads Light Treads Leg Aluminum Leg Wheel Wheel Flight Unit VTOL Module Utility Seismic Detector Device Seismic Detector Storage Large Storage Unit Protection Medium Reactive Plating Weapon Light Assault Rifle Energy Gun Improved Medium Laser Ballistic Gun Light Assault Rifle Ballistic Cannon Gauss Cannon Impact Weapon Heavy Hammer Build | -11 -10 -10 -8 ------- Run | Yrd Mat Sub Mat Slots Evolved 4 | . . . 4 Power . | . . . . Propulsion 1 | . . . 1 Utility 1 | . . . 1 Weapon 2 | . . . 2 Parts Attached 28 | 6 5 1 16 Power 1 | 1 . . . Engine 1 | 1 . . . Core . | . . . . Reactor . | . . . . Propulsion 11 | 2 2 . 7 Treads 2 | 2 . . . Leg 2 | . . . 2 Wheel 1 | . . . 1 Hover . | . . . . Flight 6 | . 2 . 4 Utility 6 | 1 2 . 3 Device 1 | . 1 . . Storage 3 | 1 1 . 1 Processor . | . . . . Hackware . | . . . . Protection 2 | . . . 2 Artifact . | . . . . Weapon 10 | 2 1 1 6 Energy Gun 1 | . . . 1 Energy Cannon . | . . . . Ballistic Gun 4 | 2 1 . 1 Ballistic Cannon 4 | . . . 4 Launcher . | . . . . Special Weapon . | . . . . Impact Weapon 1 | . . 1 . Slashing Weapon . | . . . . Piercing Weapon . | . . . . Special Melee Weapon . | . . . . Unidentified Prototypes 2 | . . . 2 Parts Lost 11 | . . . 11 Power 1 | . . . 1 Propulsion 4 | . . . 4 Utility 1 | . . . 1 Weapon 5 | . . . 5 Highest Loss Streak 5 | . . . 5 To Critical Strikes . | . . . . Average Backups 6 | 3 4 5 9 Power . | . . . . Propulsion 1 | 1 1 1 1 Utility 1 | . . 1 3 Weapon 2 | 1 1 3 4 Tool/Special . | . . . . Unused Backups 14 | 1 3 . 10 Power 2 | . 2 . . Propulsion 5 | . 1 . 4 Utility 4 | . . . 4 Weapon 3 | 1 . . 2 Tool/Special . | . . . . Average Slot Usage (%) 78 | . 83 85 72 Engine 9 | . 14 14 4 Treads 6 | . 19 . . Wheel 2 | . . . 4 Flight 15 | . 7 28 14 Device 6 | . 2 14 6 Storage 7 | . 10 . 7 Ballistic Gun 21 | . 28 19 17 Ballistic Cannon 3 | . . . 7 Impact Weapon 4 | . . 8 6 Peak Build Rating 24 | 6 7 7 24 Average Rating 10 | 3 5 6 16 On Entrance 4 | . 6 6 7 Naked Turns . | . . . . Heaviest Build 60 | 11 11 8 60 Greatest Support 40 | 40 40 8 13 Greatest Overweight (x) 9 | . . . 9 Average Overweight (x) . | . . . 1 Largest Inventory Capacity 15 | 8 15 5 15 Average Capacity 9 | 7 7 5 13 Most Carried 15 | 6 8 5 15 Average Carried 6 | 4 4 5 9 Final Capacity 15 | 8 5 5 15 Final Carried 8 | 3 5 5 8 Class Distribution -------------------- 63% | Mutant 36% | Gunner Dominant Class ---------------- Mutant | -10/Materials Mutant | -10/Subcaves Gunner | -8/Materials Resources | -11 -10 -10 -8 ----------- Run | Yrd Mat Sub Mat Matter Collected 577 | 245 20 . 312 Remotely . | . . . . Salvage Created 405 | . 41 . 364 Parts 33 | . 8 . 25 Haulers Intercepted . | . . . . Recyclers Shooed 1 | . 1 . . Parts Field Recycled . | . . . . Retrieved Matter . | . . . . Parts Self-Destructed 10 | . . 10 . Prevented . | . . . . Kills | -11 -10 -10 -8 ------- Run | Yrd Mat Sub Mat Combat Hostiles Destroyed 12 | . 3 . 9 Guns 9 | . 3 . 6 Cannons 3 | . . . 3 Classes Destroyed 4 | . 1 . 3 Worker 2 | . . . 2 Builder 1 | . . . 1 Swarmer 6 | . 3 . 3 Grunt 6 | . . . 6 Best Kill Streak 4 | . 3 . 4 Combat Bots Only 4 | . 3 . 4 Max Kills in Single Turn 3 | . 1 . 3 Gunslinging . | . . . . Exploded . | . . . . Melee . | . . . . Uniques/NPCs Destroyed . | . . . . Combat | -11 -10 -10 -8 -------- Run | Yrd Mat Sub Mat Hostile Shots Fired 223 | . 16 3 204 Missed 69 | . 6 1 62 Hits 154 | . 10 2 142 Projectile 154 | . 10 2 142 Critical Strikes 5 | . . . 5 Damage Taken 2172 | . 83 41 2048 Core 541 | . 18 25 498 Absorbed by Shields . | . . . . Ignored by Resistances 51 | . . . 51 Core Remaining (%) 91 | 100 . 82 . Volleys Fired 60 | . 13 . 47 Largest 4 | . 2 . 4 Hottest 160 | . 40 . 160 Shots Fired 150 | . 26 . 124 Gun 108 | . 26 . 82 Cannon 42 | . . . 42 Launcher . | . . . . Special . | . . . . Kinetic 150 | . 26 . 124 Thermal . | . . . . Explosive . | . . . . Electromagnetic . | . . . . Robot Hit Streak 6 | . 3 . 6 Robot Miss Streak 7 | . 2 . 7 Penetration Max 1 | . . . 1 Secondary Targets 2 | . 2 . . Max Gunslinging Chain 1 | . 1 . . Shots Hit Robots 78 | . 13 . 65 Core Hits 35 | . 5 . 30 Critical Kills . | . . . . Critical Parts Destroyed 1 | . . . 1 Critical Strikes 3 | . . . 3 Destroy 1 | . . . 1 Blast 2 | . . . 2 Melee Attacks 5 | . . 5 . Impact 5 | . . 5 . Slashing . | . . . . Piercing . | . . . . Sneak Attacks . | . . . . Combat Hostiles . | . . . . Follow-up Attacks . | . . . . Damage Inflicted 1099 | . 133 . 966 Guns 540 | . 133 . 407 Cannons 559 | . . . 559 Explosions . | . . . . Melee . | . . . . Ramming . | . . . . Kinetic 1099 | . 133 . 966 Thermal . | . . . . Explosive . | . . . . Electromagnetic . | . . . . Impact . | . . . . Slashing . | . . . . Piercing . | . . . . Highest Corruption . | . . . . Average Corruption . | . . . . Corruption Purged . | . . . . Corruption Blocked . | . . . . Overload Shots . | . . . . Overflow Damage . | . . . . Projectiles . | . . . . Explosions . | . . . . Melee . | . . . . Knockbacks 10 | . . . 10 Impact . | . . . . Kinetic 10 | . . . 10 Secondary . | . . . . Self-Inflicted Damage . | . . . . Shots . | . . . . Rammed . | . . . . Targets Rammed . | . . . . Kicked . | . . . . Crushed . | . . . . Highest Temperature 274 | . 8 . 274 Average Temperature 55 | . 4 . 60 Received Heat Transfer 1071 | . . . 1071 Siege Activations . | . . . . Martial Activations . | . . . . Shielding Activations . | . . . . Robots Disrupted . | . . . . Combat Hostiles . | . . . . Robots Corrupted . | . . . . Combat Hostiles . | . . . . Parts Fried . | . . . . Impact Corruptions . | . . . . Robots Melted . | . . . . Combat Hostiles . | . . . . Parts Melted . | . . . . Heat Transferred . | . . . . Parts Sabotaged . | . . . . Parts Stolen . | . . . . Parts Stripped . | . . . . Power Chain Reactions . | . . . . Alert | -11 -10 -10 -8 ------- Run | Yrd Mat Sub Mat Maximum Alert Level . | . . . . Low Security (%) 100 | 100 100 . 100 Level 1 . | . . . . Level 2 . | . . . . Level 3 . | . . . . Level 4 . | . . . . Level 5 . | . . . . High Security . | . . . . Max Security . | . . . . Peak Influence 87 | . 60 . 87 Initial . | . . . . Average 19 | . 13 . 28 Influence Increases 352 | . 77 . 275 Destroy 0b10 Robot/C 240 | . 60 . 180 Destroy 0b10 Robot/NC 15 | . . . 15 Destroy Leader 40 | . 10 . 30 Successful Hack 12 | . 7 . 5 Destroy Structure 30 | . . . 30 Lose Combat Pursuer 15 | . . . 15 Influence Decreases 318 | . 77 . 241 Time Decay 218 | . 77 . 141 Lost Part 100 | . . . 100 Squads Dispatched 5 | . . . 5 Investigation 1 | . . . 1 Extermination . | . . . . Reinforcement 2 | . . . 2 Assault . | . . . . Garrison 2 | . . . 2 Intercept . | . . . . Searches Triggered . | . . . . Construction Impeded . | . . . . Haulers Reinforced . | . . . . Active Scanning Responses . | . . . . Cargo Convoy Interrupts . | . . . . Stealth | -11 -10 -10 -8 --------- Run | Yrd Mat Sub Mat Distress Signals 3 | . . . 3 Communications Jammed . | . . . . Distress Signals . | . . . . Times Spotted 28 | . 6 2 20 Peak Tracking Total 6 | . 4 2 6 Tactical Retreats 1 | . . . 1 Traps | -11 -10 -10 -8 ------- Run | Yrd Mat Sub Mat Traps Triggered . | . . . . Indirectly . | . . . . Trap Hack Attempts . | . . . . Triggered . | . . . . Disarmed . | . . . . Reprogrammed . | . . . . Reused . | . . . . Traps Extracted . | . . . . Installed . | . . . . Triggered . | . . . . Machines | -11 -10 -10 -8 ---------- Run | Yrd Mat Sub Mat Machines Disabled . | . . . . Max in Single Turn . | . . . . Machines Repaired . | . . . . Machines Dismantled . | . . . . Machines Sabotaged . | . . . . Overloaded Fab Kills . | . . . . Hacking | -11 -10 -10 -8 --------- Run | Yrd Mat Sub Mat Machines Accessed 4 | . 2 . 2 Terminals 4 | . 2 . 2 Fabricators . | . . . . Repair Stations . | . . . . Recycling Units . | . . . . Scanalyzers . | . . . . Garrison Access . | . . . . Total Hacks 13 | . 5 . 8 Successful 4 | . 3 . 1 Failed 9 | . 2 . 7 Catastrophic . | . . . . Database Lockouts . | . . . . Manual 12 | . 3 . 9 Terminals 13 | . 5 . 8 Fabricators . | . . . . Repair Stations . | . . . . Recycling Units . | . . . . Scanalyzers . | . . . . Garrison Access . | . . . . Terminal Hacks 1 | . 1 . . Registered Components 1 | . 1 . . Fabricator Hacks . | . . . . Repair Station Hacks . | . . . . Recycling Unit Hacks . | . . . . Scanalyzer . | . . . . Garrison Access Hacks . | . . . . Unauthorized Hacks 3 | . 2 . 1 Terminals 3 | . 2 . 1 Botnet 3 | . 2 . 1 Fabricators . | . . . . Repair Stations . | . . . . Recycling Units . | . . . . Scanalyzers . | . . . . Garrison Access . | . . . . Data Cores Recovered . | . . . . Used . | . . . . Hacking Detections 3 | . 1 . 2 Full Trace Events 1 | . . . 1 Feedback Events . | . . . . Feedback Blocked . | . . . . Robot Schematics Acquired . | . . . . Robots Built . | . . . . Authchips . | . . . . Time . | . . . . Total Robot Build Rating . | . . . . Part Schematics Acquired . | . . . . Parts Built . | . . . . Authchips . | . . . . Time . | . . . . Total Part Build Rating . | . . . . Parts Repaired . | . . . . Time . | . . . . Parts Recycled . | . . . . Recycled Matter . | . . . . Retrieved Matter . | . . . . Retrieved Components . | . . . . Parts Scanalyzed . | . . . . Part Schematics Acquired . | . . . . Parts Damaged . | . . . . Bothacking | -11 -10 -10 -8 ------------ Run | Yrd Mat Sub Mat Used RIF Installer . | . . . . Robots Hacked . | . . . . Non-combat . | . . . . Combat . | . . . . Robot Hacks Applied . | . . . . Relay Couplers Released . | . . . . Fabnet Peak Effective % . | . . . . Robots Rewired . | . . . . Allies Hacked . | . . . . Hacks Repelled . | . . . . Allies | -11 -10 -10 -8 -------- Run | Yrd Mat Sub Mat Total Allies . | . . . . Largest Group . | . . . . Highest-Rated Group . | . . . . Highest-Rated Ally . | . . . . Total Orders . | . . . . Ally Attacks . | . . . . Total Damage . | . . . . Kills . | . . . . Allies Corrupted . | . . . . Allies Melted . | . . . . Intel | -11 -10 -10 -8 ------- Run | Yrd Mat Sub Mat Active Infowar (turns) 527 | . 57 181 289 Seismic 527 | . 57 181 289 Robot Analysis Total . | . . . . Derelict Logs Recovered . | . . . . Drone Launches . | . . . . Drone Recoveries . | . . . . Exploration | -11 -10 -10 -8 ------------- Run | Yrd Mat Sub Mat Turns Passed 1022 | 87 323 181 431 Spaces Moved 847 | 57 296 283 211 Core 18 | 18 . . . Treads 159 | 39 120 . . Legs 4 | . . . 4 Wheels 122 | . . . 122 Hover . | . . . . Flight 544 | . 176 283 85 Fastest Speed 29 | 50 37 37 29 Average Speed 78 | 125 86 37 108 Slowest Speed 665 | 160 160 37 665 Overloaded Moves . | . . . . Propulsion Burnouts . | . . . . Robots Hopped . | . . . . Potential Cave-ins . | . . . . Cave-ins Triggered . | . . . . Exploration Rate (%) 20 | 4 43 20 16 Regions Visited 3 Branch Regions 1 Pre-discovered Areas 1 | . . 1 . Known Exits Taken . | . . . . Unknown Exits Taken 3 | 1 1 1 . Scrap Searched . | . . . . Spaces Dug . | . . . . Terrain Destroyed 30 | . . . 30 Melee . | . . . . Projectile 30 | . . . 30 AOE . | . . . . Terrain Rammed . | . . . . Walls Destroyed . | . . . . Machines Disabled . | . . . . Actions | -11 -10 -10 -8 --------- Run | Yrd Mat Sub Mat Total 1099 | 73 341 349 336 Wait 99 | . 10 61 28 Move 844 | 56 295 282 211 Hop . | . . . . Pick Up 39 | 10 9 . 20 Fast Attach 4 | . 2 . 2 Attach 20 | 6 2 . 12 Detach 1 | . . . 1 Swap 6 | . 1 1 4 Drop 21 | 1 9 . 11 Fire 60 | . 13 . 47 Melee 5 | . . 5 . Ram . | . . . . Kick . | . . . . Crush . | . . . . Escape Stasis . | . . . . Rewire . | . . . . Trap . | . . . . Miscellaneous . | . . . . Route ------- -11/Scrapyard -10/Materials (discovered 3 exits: [*Mat] / [*Min] / [*Sub]) -10/Subcaves -8/Materials History --------- Turn | Location | Event 4 | -11/Scrapyard | Discovered new exit (range 15) 88 | -11/Scrapyard | Entered Materials 154 | -10/Materials | Discovered new exit (range 4) 229 | -10/Materials | Discovered new exit (range 8) 317 | -10/Materials | Build established: Mutant 352 | -10/Materials | Discovered new exit (range 12) 411 | -10/Materials | Entered Subcaves 412 | -10/Subcaves | Approached by a straggling Scientist 415 | -10/Subcaves | Shifting Twisted Machinery released Mak. Power Source 418 | -10/Subcaves | Shifting Twisted Machinery released Sub. Optics 524 | -10/Subcaves | Discovered new exit (range 8) 539 | -10/Subcaves | Learned location of Zion (-7) 539 | -10/Subcaves | Met a Zionite searching for "candidates" 582 | -10/Subcaves | Ambushed by Subdwellers from Twisted Machinery 592 | -10/Subcaves | Entered Materials 592 | -8/Materials | Evolved 4 slots: Propulsion x1, Utility x1, Weapon x2 827 | -8/Materials | Garrison activated, responded to threat 919 | -8/Materials | Lost 5 parts (3n1u1w) 927 | -8/Materials | Build established: Gunner 983 | -8/Materials | Core integrity fell below 50% 1014 | -8/Materials | Core integrity fell below 20% 1023 | -8/Materials | Self-destructed Last Messages --------------- 00987_ Gauss Cannon destroyed. 00988_ Slug penetrates Wall. 00992_ U-05 Engineer builds a Wall. 00992_ Acquired 23 matter. 00994_ Penetrated by Slug. 00994_ Gauss Cannon destroyed. 00996_ Critical hit (Burn: +37). 00996_ U-05 Engineer builds a Wall. 00997_ Imp. VTOL Module destroyed. 00998_ Acquired Aluminum Leg. 01000_ Critical hit (Burn: +37). 01001_ Penetrated by Slug. 01001_ U-05 Engineer destroyed. 01007_ Penetrated by Slug. 01007_ Critical hit (Destroy). 01011_ Slug penetrates Wall. 01012_ Acquired Aluminum Leg. 01014_ Slug penetrates Wall. 01017_ Acquired 59 matter. 01023_ Slug penetrates Wall. Map ----- +----------------------------------------------------+ | ????????????????????????????????????? | | ????????????????????????????????????? | | ????????????????????????????????????? | | ????????????????????????????????????? | | ????????????????????????????????????? | | ????????????????????????????????????? | | ????????????????????????????????????? | | ????????????????????????????????????? | | ????????????????????????????????????? | | ????????????????????????????????????? | | ????????????????????????????????????? | | ????????????????????????????????????? | | ????????????????????????????????????? | | ????????????????????????????????????? | | ????????????????????????????????????? | | ??????????????????????? ???????????? | | ??????????????????????? ??????????? | | ????????????????????? % ?########?? | | ???????????????????" ! ]#!!**]]#?? | | ???????????????????+ #!!**]]#?? | | ?????????????# ????? # #?? | | ?????????????# ?#? = # ##? | | ??????????? #a %h#########% #? | | ??????????" + g !%!=% #? | | ?????????????# !=%[!% #? | | ??????????" /a % %%@=[%]|T #? | | ?????????? ; |=%% ! !* #? | | ?????????????# =%%%g**=!! #? | | ?????????????# #########+###[%=% ## | | ??????????????????# *!";#=[%###? | | ??????????????????# " ##=/[ ; ?? | | ???????#######+####??G" ?##! ###? | | ???????# #??" " ???# #??? | | ???????# """ #? ??## ##?? | | ???????# "T" """ #? ???# #?? | | ???????# """ ## ! ]????# #?? | | ???????# """ ## ]????# T #?? | | ???????# = ## /????# #?? | | ???????# = ! #??### ????# #?? | | ???????# = #????#?????### ###?? | | ???????#+###+#####????????????# #???? | | ???????# ################# #???? | | ???????# #???? | | ???????# ###################???? | | ???????#### # #??????????????? | | ??????##### # =#??????????????? | | ??????#!! # """ =#??????????????? | | ??????#! # """ #??????????????? | | ??????# # """ #??????????????? | | ??????# # = !#??########????? | +----------------------------------------------------+ Best States ------------- Heat Dissipation 31 Energy Generation 10 Energy Capacity 125 Matter Stores 285 Matter Capacity 300 Sight Range 16 Terrain Scan Density 10 Armor Coverage 450 Resistance: KI 30 Evasion (%) 64 Recoil Reduction 2 Item Schematics ----------------- None Robot Schematics ------------------ None Fabricated ------------ Nothing Repaired ---------- Nothing Alien Tech Used ----------------- None Achievements -------------- None Challenges ------------ None Game ------ Seed ArmageddonNavigationTreads Manual? 0 Play Time 00:14:00 Cumulative 232.5 hours Start 2025.08.30 @ 10:42:28 End 2025.08.30 @ 10:58:56 Sessions 1 Manual Loads 0 Difficulty Rogue Special Mode None Game No. 343 Rogue 343 Adventurer 0 Explorer 0 Win Type - Total 4 Types 3/0/1/0/0/0/0/0/0/0 Lore% 81 Gallery% 76 Achievement% 58 Wizard Run 0 Options --------- Layout 1 ASCII 0 Keyboard 0 Movement Mouse Keybinds 0 Fullscreen 1 Font 24/Smallcaps Map View 50x40 Zoom Use 0% Tactical HUD 1 Map Filters NONE Filters NONE Steam 1 RUN: 522038c0-9d40-493c-bf7d-7c8ffaa14589